bitfinex/quotes_BTCUSD_20241226
["timestamp","ask_amount","ask_price","bid_price","bid_amount"]
[1735195892372,0.80579213,98096.0,98095.0,1.80864654]
[1735195892575,0.74462813,98096.0,98095.0,1.80864654]
[1735195893406,0.74462813,98096.0,98095.0,1.86809854]
[1735195893607,0.74462813,98096.0,98095.0,2.86063954]
[1735195894071,0.74462813,98096.0,98095.0,2.41499954]
[1735195894222,0.74462813,98096.0,98095.0,1.48103354]
[1735195894430,0.74462813,98096.0,98095.0,1.22653354]
[1735195896530,0.74462813,98096.0,98095.0,1.02703354]
[1735195896670,0.74462813,98096.0,98095.0,1.22653354]
[1735195897478,0.74462813,98096.0,98095.0,1.50059957]
[1735195897905,0.74462813,98096.0,98095.0,1.30109957]
[1735195898125,0.74462813,98096.0,98095.0,1.50059957]
[1735195899270,0.74462813,98096.0,98095.0,1.22653354]
[1735195900902,0.74462813,98096.0,98095.0,1.21753354]
[1735195901169,0.74462813,98096.0,98095.0,1.22653354]
[1735195901578,0.74462813,98096.0,98095.0,2.09953354]
[1735195902247,0.74462813,98096.0,98095.0,2.09053354]
[1735195902426,0.74462813,98096.0,98095.0,2.08153354]
[1735195902668,0.74462813,98096.0,98095.0,2.09053354]
[1735195903429,0.23466276,98096.0,98095.0,2.09053354]
[1735195903645,0.13272276,98096.0,98095.0,1.22653354]
[1735195904457,0.09194676,98096.0,98095.0,1.22653354]
[1735195905061,0.09194676,98096.0,98095.0,1.12703354]
[1735195905261,0.09194676,98096.0,98095.0,1.02703354]
[1735195905638,0.09194676,98096.0,98095.0,0.68876347]
[1735195905829,0.09194676,98096.0,98095.0,0.88826347]
[1735195906410,0.05117076,98096.0,98095.0,0.88826347]
[1735195906616,7.6e-07,98096.0,98095.0,0.88826347]
[1735195906803,7.6e-07,98096.0,98095.0,0.65682847]
[1735195908675,7.6e-07,98096.0,98095.0,1.52982847]
[1735195908817,7.6e-07,98096.0,98095.0,0.91132847]
[1735195909000,7.6e-07,98096.0,98095.0,0.65682847]
[1735195912161,0.00017216,98096.0,98095.0,0.65682847]
[1735195912579,0.00017216,98096.0,98095.0,1.94672347]
[1735195913417,0.00017216,98096.0,98095.0,1.92033747]
[1735195913596,0.00017216,98096.0,98095.0,1.85794647]
[1735195914009,0.00017216,98096.0,98095.0,1.1285259]
[1735195914226,0.07547216,98096.0,98095.0,2.3703439]
[1735195914428,0.07547216,98096.0,98095.0,1.1285259]
[1735195914665,0.07547216,98096.0,98095.0,3.2026439]
[1735195914965,0.07547216,98096.0,98095.0,3.2189379]
[1735195915100,0.07547216,98096.0,98095.0,3.1558779]
[1735195915524,0.07547216,98096.0,98095.0,3.56164811]
[1735195915730,0.07547216,98096.0,98095.0,3.44096511]
[1735195915935,0.07547216,98096.0,98095.0,3.42612411]
[1735195916836,0.07547216,98096.0,98095.0,3.41138711]
[1735195917036,0.07547216,98096.0,98095.0,3.0056169]
[1735195917585,0.07547216,98096.0,98095.0,2.9866549]
[1735195918145,0.07547216,98096.0,98095.0,2.5329039]
[1735195919045,1.6e-07,98096.0,98095.0,2.5329039]
[1735195919247,0.0001714,98099.0,98098.0,0.1795]
[1735195919467,0.0001714,98099.0,98098.0,0.48617179]
[1735195919672,0.0001714,98099.0,98098.0,1.20303879]
[1735195919875,0.0001714,98099.0,98098.0,1.44744879]
[1735195920133,0.0001714,98099.0,98098.0,1.22104479]
[1735195920333,0.0001714,98099.0,98098.0,1.05654379]
[1735195920484,0.0001714,98099.0,98098.0,1.02676579]
[1735195920691,0.0001714,98099.0,98098.0,1.03576579]
[1735195921237,0.0001714,98099.0,98098.0,1.00827079]
[1735195921469,0.0001714,98099.0,98098.0,0.99649779]
[1735195921674,0.0001714,98099.0,98098.0,0.93737879]
[1735195922012,0.0001714,98099.0,98098.0,0.92379379]
[1735195922463,0.0001714,98099.0,98098.0,0.91233579]
[1735195922670,0.0001314,98099.0,98098.0,0.91233579]
[1735195923672,0.0001314,98099.0,98098.0,0.84960079]
[1735195924056,0.0001314,98099.0,98098.0,0.83559679]
[1735195924627,0.0001314,98099.0,98098.0,0.50417179]
[1735195924821,0.0001314,98099.0,98098.0,0.51414072]
[1735195924995,0.0001314,98099.0,98098.0,0.78544572]
[1735195925212,0.0001314,98099.0,98098.0,0.66914072]
[1735195926481,0.0001314,98099.0,98098.0,1.39538772]
[1735195926899,0.0001314,98099.0,98098.0,1.49488772]
[1735195927243,0.0001314,98099.0,98098.0,1.07088772]
[1735195927857,0.083,98102.0,98101.0,0.1795]
[1735195928061,0.083,98102.0,98101.0,1.15638379]
[1735195928260,0.083,98102.0,98101.0,1.13019679]
[1735195928476,0.083,98102.0,98101.0,1.11203679]
[1735195929031,0.083,98102.0,98101.0,1.12103679]
[1735195930035,0.083,98102.0,98101.0,1.13003679]
[1735195933868,0.0009913,98121.0,98101.0,1.13003679]
[1735195933869,0.0009913,98121.0,98120.0,0.08]
[1735195934112,0.0009913,98121.0,98120.0,1.26723679]
[1735195934327,5.211e-05,98121.0,98120.0,1.71565779]
[1735195934745,5.211e-05,98121.0,98120.0,1.55932407]
[1735195934932,5.211e-05,98121.0,98120.0,1.54774207]
[1735195935077,5.211e-05,98121.0,98120.0,1.44824207]
[1735195935295,5.211e-05,98121.0,98120.0,0.90894831]
[1735195935498,5.211e-05,98121.0,98120.0,1.02404231]
[1735195935905,5.211e-05,98121.0,98120.0,1.01324631]
[1735195936120,5.211e-05,98121.0,98120.0,1.02224631]
[1735195936318,5.211e-05,98121.0,98120.0,1.01324631]
[1735195936799,0.08325211,98121.0,98120.0,1.03858308]
[1735195937009,0.08325211,98121.0,98120.0,1.13858308]
[1735195937335,0.08325211,98121.0,98120.0,1.13258308]
[1735195937537,0.08325211,98121.0,98120.0,1.14158308]
[1735195938528,0.0478,98129.0,98128.0,0.266052]
[1735195938744,0.0478,98150.0,98145.0,0.023]
[1735195938926,0.04790624,98150.0,98149.0,0.44000332]
[1735195939344,0.04790624,98150.0,98149.0,0.63400332]
[1735195940398,0.04790624,98150.0,98149.0,0.44900332]
[1735195940617,0.04790624,98150.0,98149.0,0.98144956]
[1735195940822,0.04790624,98150.0,98149.0,0.98644956]
[1735195941463,0.04790624,98150.0,98149.0,0.98144956]
[1735195941733,0.13110624,98150.0,98149.0,0.98144956]
[1735195941943,0.13110624,98150.0,98149.0,0.97244956]
[1735195942276,0.13110624,98150.0,98149.0,0.98144956]
[1735195942484,0.13110624,98150.0,98149.0,0.97244956]
[1735195942691,0.13110624,98150.0,98149.0,0.98744956]
[1735195943090,0.13110624,98150.0,98149.0,0.97844956]
[1735195943337,0.13110624,98150.0,98149.0,0.99180259]
[1735195943516,0.13110624,98150.0,98149.0,0.99880259]
[1735195943851,0.13110624,98150.0,98149.0,1.00780259]
[1735195944060,0.13110624,98150.0,98149.0,1.00080259]
[1735195944198,0.13110624,98150.0,98149.0,1.00880259]
[1735195945082,0.13110624,98150.0,98149.0,0.99080259]
[1735195945553,0.13110624,98150.0,98149.0,1.21967335]
[1735195945736,0.13110624,98150.0,98149.0,1.21167335]
[1735195945936,0.13110624,98150.0,98149.0,1.22067335]
[1735195946167,0.13110624,98150.0,98149.0,1.22867335]
[1735195946541,0.13110624,98150.0,98149.0,1.41580259]
[1735195946888,0.13110624,98150.0,98149.0,1.41480259]
[1735195947091,0.13110624,98150.0,98149.0,1.42380259]
[1735195947303,0.13110624,98150.0,98149.0,1.41580259]
[1735195947522,0.13110624,98150.0,98149.0,0.96730259]
[1735195947731,0.13110624,98150.0,98149.0,0.80580259]
[1735195949911,0.13110624,98150.0,98149.0,0.78880259]
[1735195950130,0.13110624,98150.0,98149.0,0.80680259]
[1735195950542,0.13110624,98150.0,98149.0,0.79780259]
[1735195950891,0.13110624,98150.0,98149.0,1.03527398]
[1735195951305,0.13110624,98150.0,98149.0,1.02627398]
[1735195951508,0.13110624,98150.0,98149.0,1.03527398]
[1735195951715,0.13110624,98150.0,98149.0,1.90777398]
[1735195951936,0.13110624,98150.0,98149.0,1.03527398]
[1735195952142,0.13110624,98150.0,98149.0,0.80680259]
[1735195953006,0.13110624,98150.0,98149.0,0.88680259]
[1735195953730,0.13110624,98150.0,98149.0,1.75030259]
[1735195953948,0.00010624,98150.0,98149.0,2.03842759]
[1735195954160,0.0001716,98160.0,98159.0,0.416]
[1735195954384,0.0001716,98160.0,98159.0,2.00200332]
[1735195954581,0.0001716,98160.0,98159.0,1.96336232]
[1735195954936,0.0001716,98160.0,98159.0,2.93536232]
[1735195955145,0.0001716,98160.0,98159.0,2.97404925]
[1735195956506,6e-07,98163.0,98162.0,0.615495]
[1735195956714,6e-07,98163.0,98162.0,0.74916825]
[1735195958371,6e-07,98163.0,98162.0,1.08761449]
[1735195958578,0.0001714,98171.0,98170.0,0.18]
[1735195958754,0.0001714,98171.0,98170.0,2.48719932]
[1735195958955,0.0001714,98171.0,98170.0,2.47580632]
[1735195959161,0.0001714,98171.0,98170.0,2.50544953]
[1735195959522,0.0001714,98171.0,98170.0,2.05651532]
[1735195959740,0.0001714,98171.0,98170.0,1.50013332]
[1735195959965,0.0001714,98171.0,98170.0,1.02248932]
[1735195960158,0.0785714,98171.0,98170.0,0.94675832]
[1735195960361,0.0785714,98171.0,98170.0,0.61996832]
[1735195960560,0.0785714,98171.0,98170.0,0.83028832]
[1735195960788,0.0785714,98171.0,98170.0,0.83928832]
[1735195960993,0.0785714,98171.0,98170.0,0.84929591]
[1735195961333,0.0001714,98171.0,98170.0,1.18774215]
[1735195961677,0.0001714,98171.0,98170.0,1.19674215]
[1735195963715,0.0009923,98182.0,98181.0,0.08]
[1735195963889,0.00151336,98182.0,98181.0,1.39245032]
[1735195964108,0.00052106,98182.0,98181.0,1.64704032]
[1735195964703,0.00052106,98182.0,98181.0,1.65604032]
[1735195965231,0.00052106,98182.0,98181.0,2.00248656]
[1735195965675,0.0001714,98189.0,98186.0,0.103]
[1735195965874,0.00032762,98187.0,98186.0,0.35698632]
[1735195966828,0.00032762,98187.0,98186.0,0.36398632]
[1735195967072,0.00032762,98187.0,98186.0,0.54248632]
[1735195967282,0.00032762,98187.0,98186.0,1.24548632]
[1735195967482,0.00032762,98187.0,98186.0,1.2558595]
[1735195967685,0.00032762,98187.0,98186.0,1.39236223]
[1735195969385,0.00032762,98187.0,98186.0,1.2558595]
[1735195972779,6.2e-07,98187.0,98186.0,2.5716255]
[1735195972986,6.2e-07,98187.0,98186.0,0.67379159]
[1735195973191,2e-08,98189.0,98188.0,0.103]
[1735195973432,2e-08,98189.0,98188.0,0.35698632]
[1735195974146,2e-08,98189.0,98188.0,0.69260327]
[1735195974281,4.2e-07,98192.0,98191.0,0.1795]
[1735195974485,4.2e-07,98192.0,98191.0,0.45648632]
[1735195975549,0.0806,98202.0,98200.0,0.492932]
[1735195975724,0.00120965,98201.0,98200.0,1.39277132]
[1735195975933,0.00022345,98201.0,98200.0,1.79009332]
[1735195976596,0.00022345,98201.0,98200.0,1.76624132]
[1735195976798,0.00022345,98201.0,98200.0,1.77524132]
[1735195977006,0.00022345,98201.0,98200.0,1.78424132]
[1735195977834,0.00022345,98201.0,98200.0,1.87513871]
[1735195978267,0.00022345,98201.0,98200.0,2.26579871]
[1735195978486,0.00022345,98201.0,98200.0,2.52029871]
[1735195978695,4.5e-07,98201.0,98200.0,2.52029871]
[1735195978896,4.5e-07,98201.0,98200.0,1.61114268]
[1735195979264,4.5e-07,98201.0,98200.0,1.65911381]
[1735195979497,4.5e-07,98201.0,98200.0,1.6806862]
[1735195979876,4.5e-07,98201.0,98200.0,1.6626862]
[1735195980112,4.5e-07,98201.0,98200.0,1.6716862]
[1735195980520,4.5e-07,98201.0,98200.0,1.58078881]
[1735195981257,4.5e-07,98201.0,98200.0,1.53178464]
[1735195981425,0.08070045,98201.0,98200.0,0.65978464]
[1735195981632,0.08070045,98201.0,98200.0,0.66878464]
[1735195981857,0.08070045,98201.0,98200.0,1.52157253]
[1735195982251,0.12920045,98201.0,98200.0,1.23197153]
[1735195982468,0.12920045,98201.0,98200.0,1.15197153]
[1735195983002,0.12920045,98201.0,98200.0,1.23197153]
[1735195983209,0.12920045,98201.0,98200.0,0.66878464]
[1735195983422,0.12920045,98201.0,98200.0,0.70950964]
[1735195983624,0.12928605,98201.0,98200.0,0.70950964]
[1735195984140,0.12928605,98201.0,98200.0,0.43650964]
[1735195984367,0.12928605,98201.0,98200.0,0.29524529]
[1735195984778,0.12928605,98201.0,98200.0,0.33597429]
[1735195985397,0.12928605,98201.0,98200.0,0.31797429]
[1735195985615,0.12928605,98201.0,98200.0,0.30924529]
[1735195985779,0.12928605,98201.0,98200.0,0.31824529]
[1735195987021,0.12928605,98201.0,98200.0,0.48857248]
[1735195987805,0.12928605,98201.0,98200.0,0.46824529]
[1735195988421,0.12928605,98201.0,98200.0,0.45024529]
[1735195988761,0.12928605,98201.0,98200.0,0.45924529]
[1735195988972,0.12928605,98201.0,98200.0,0.46824529]
[1735195989394,0.12928605,98201.0,98200.0,1.07541832]
[1735195989646,0.12928605,98201.0,98200.0,1.32991832]
[1735195989858,0.12928605,98201.0,98200.0,0.45791832]
[1735195992137,0.12978605,98201.0,98200.0,0.45791832]
[1735195994832,0.12978605,98201.0,98200.0,1.07541832]
[1735195995158,0.12928605,98201.0,98200.0,1.07541832]
[1735195995537,0.12928605,98201.0,98200.0,1.07558952]
[1735195996600,0.12978605,98201.0,98200.0,1.07558952]
[1735195998138,0.12978605,98201.0,98200.0,1.41241657]
[1735195998958,0.12928605,98201.0,98200.0,1.41241657]
[1735195999163,0.12978605,98201.0,98200.0,1.41241657]
[1735195999552,0.12928605,98201.0,98200.0,1.41241657]
[1735195999749,0.12978605,98201.0,98200.0,1.41241657]
[1735195999953,0.12928605,98201.0,98200.0,1.41241657]
[1735196000114,0.12928605,98201.0,98200.0,1.66691657]
[1735196000859,0.12978605,98201.0,98200.0,1.66691657]
[1735196001479,0.12978605,98201.0,98200.0,1.24291657]
[1735196001688,0.12978605,98201.0,98200.0,0.79491657]
[1735196006179,0.12928605,98201.0,98200.0,0.79491657]
[1735196006609,0.12978605,98201.0,98200.0,1.66691657]
[1735196012553,0.12978605,98201.0,98200.0,1.94027902]
[1735196012840,0.12978605,98201.0,98200.0,1.23777902]
[1735196013288,0.12978605,98201.0,98200.0,1.26754506]
[1735196015072,0.12978605,98201.0,98200.0,0.99418261]
[1735196016616,0.08128605,98201.0,98200.0,0.99418261]
[1735196017764,0.08128605,98201.0,98200.0,0.82468261]
[1735196018043,0.08128605,98201.0,98200.0,1.52718261]
[1735196019310,0.08128605,98201.0,98200.0,1.80176427]
[1735196020860,0.08128605,98201.0,98200.0,1.52718261]
[1735196023838,0.08128605,98201.0,98200.0,1.69668261]
[1735196030727,0.08078605,98201.0,98200.0,1.69668261]
[1735196035098,8.605e-05,98201.0,98200.0,1.69668261]
[1735196036149,8.605e-05,98201.0,98200.0,1.44218261]
[1735196037597,0.07688605,98201.0,98200.0,1.44218261]
[1735196037998,0.07688605,98201.0,98200.0,0.82468261]
[1735196039565,8.605e-05,98201.0,98200.0,0.82468261]
[1735196039753,0.00058605,98201.0,98200.0,0.82468261]
[1735196039987,0.07738605,98201.0,98200.0,0.82468261]
[1735196041732,0.07738605,98201.0,98200.0,1.07918261]
[1735196042076,0.07738605,98201.0,98200.0,1.48523083]
[1735196043020,0.00058605,98201.0,98200.0,2.10273083]
[1735196043449,0.00058605,98201.0,98200.0,1.23073083]
[1735196044282,0.07738605,98201.0,98200.0,1.23073083]
[1735196044632,0.07688605,98201.0,98200.0,1.23073083]
[1735196045889,8.605e-05,98201.0,98200.0,0.82468261]
[1735196047845,0.12328605,98201.0,98200.0,0.82468261]
[1735196048338,0.12328605,98201.0,98200.0,1.69668261]
[1735196049998,0.12328605,98201.0,98200.0,0.97118261]
[1735196050211,0.12328605,98201.0,98200.0,1.64391657]
[1735196050473,0.14328605,98201.0,98200.0,1.33098457]
[1735196050645,0.24328605,98201.0,98200.0,0.43487089]
[1735196050897,0.25345625,98201.0,98200.0,0.35677089]
[1735196051847,0.25345625,98201.0,98200.0,0.36577089]
[1735196052248,0.25345625,98201.0,98200.0,0.35677089]
[1735196052451,0.25345625,98201.0,98200.0,0.36577089]
[1735196052682,0.25345625,98201.0,98200.0,0.36077089]
[1735196052848,0.25345625,98201.0,98200.0,0.36877089]
[1735196053057,0.25345625,98201.0,98200.0,0.11598632]
[1735196053462,0.25345625,98201.0,98200.0,0.11615752]
[1735196053657,0.24328605,98201.0,98200.0,0.11615752]
[1735196053879,0.24328605,98201.0,98200.0,0.10815752]
[1735196054197,0.24328605,98201.0,98200.0,0.10415752]
[1735196054392,0.24328605,98201.0,98200.0,0.10515752]
[1735196054787,0.24328605,98201.0,98200.0,0.10415752]
[1735196054985,0.24328605,98201.0,98200.0,0.10715752]
[1735196055393,0.24328605,98201.0,98200.0,0.10415752]
[1735196071672,0.12328605,98201.0,98200.0,0.10415752]
[1735196071884,0.12455916,98201.0,98200.0,0.10415752]
[1735196072420,0.24455916,98201.0,98200.0,0.10415752]
[1735196072622,0.14328605,98201.0,98200.0,0.10415752]
[1735196072830,0.14455916,98201.0,98200.0,0.10415752]
[1735196073633,0.13959372,98201.0,98200.0,0.10415752]
[1735196076541,0.13967932,98201.0,98200.0,0.10415752]
[1735196080084,0.24707932,98201.0,98200.0,0.10415752]
[1735196080394,0.13840621,98201.0,98200.0,0.10415752]
[1735196080532,0.1396793,98201.0,98200.0,0.10415752]
[1735196081842,0.2396793,98201.0,98200.0,0.0001712]
[1735196082016,0.23840621,98201.0,98200.0,0.0001712]
[1735196084164,0.24040621,98201.0,98200.0,0.0001712]
[1735196084584,0.23840621,98201.0,98200.0,0.0001712]
[1735196085424,0.23940621,98201.0,98200.0,0.0001712]
[1735196090112,0.34680621,98201.0,98200.0,0.0001712]
[1735196090249,0.23940621,98201.0,98200.0,0.0001712]
[1735196093297,0.44670621,98201.0,98200.0,0.0001712]
[1735196094775,0.62839138,98201.0,98200.0,0.0001712]
[1735196095164,0.506456,98186.0,98185.0,0.194]
[1735196095374,0.162952,98188.0,98170.0,0.0915849]
[1735196095375,0.1205,98183.0,98170.0,0.0915849]
[1735196095587,0.34477352,98183.0,98157.0,0.0915849]
[1735196095797,0.3435,98183.0,98157.0,0.0915849]
[1735196097244,0.3465,98183.0,98156.0,0.163005]
[1735196097415,0.3435,98183.0,98156.0,0.163005]
[1735196097622,0.3435,98183.0,98150.0,0.163015]
[1735196097773,0.3465,98183.0,98150.0,0.163015]
[1735196097986,0.3485,98183.0,98150.0,0.163015]
[1735196098195,0.35897012,98183.0,98182.0,3.56e-05]
[1735196098381,0.35697012,98183.0,98182.0,3.56e-05]
[1735196098815,0.35597012,98183.0,98182.0,3.56e-05]
[1735196099250,0.35897012,98183.0,98182.0,3.56e-05]
[1735196099458,0.35697012,98183.0,98182.0,3.56e-05]
[1735196099832,0.36097012,98183.0,98182.0,3.56e-05]
[1735196102241,0.4852819,98183.0,98182.0,3.56e-05]
[1735196102401,0.7425819,98183.0,98182.0,3.56e-05]
[1735196103851,0.6352819,98183.0,98182.0,3.56e-05]
[1735196104816,0.7425819,98183.0,98182.0,3.56e-05]
[1735196105539,0.7655819,98183.0,98182.0,3.56e-05]
[1735196106539,0.7585819,98183.0,98182.0,3.56e-05]
[1735196106913,0.7675819,98183.0,98182.0,0.0010356]
[1735196107747,0.7725819,98183.0,98182.0,0.0010356]
[1735196108220,0.7635819,98183.0,98182.0,3.56e-05]
[1735196108428,0.7585819,98183.0,98182.0,3.56e-05]
[1735196108627,0.7725819,98183.0,98182.0,0.0010356]
[1735196108829,0.7725819,98183.0,98182.0,3.56e-05]
[1735196109081,0.7585819,98183.0,98182.0,3.56e-05]
[1735196109289,0.7675819,98183.0,98182.0,0.0010356]
[1735196110111,0.7725819,98183.0,98182.0,0.0010356]
[1735196110277,0.7726676,98183.0,98182.0,0.0010356]
[1735196111038,0.6526676,98183.0,98182.0,0.0010356]
[1735196111246,0.7726676,98183.0,98182.0,0.0010356]
[1735196116476,0.7726676,98183.0,98182.0,0.0009856]
[1735196121763,0.6526676,98183.0,98182.0,0.0009856]
[1735196121970,0.7726676,98183.0,98182.0,0.0009856]
[1735196122729,0.7726676,98183.0,98182.0,0.001157]
[1735196125342,0.6526676,98183.0,98182.0,0.001157]
[1735196125559,0.7726676,98183.0,98182.0,0.001157]
[1735196126002,0.53838128,98183.0,98182.0,0.001157]
[1735196127180,0.7446676,98183.0,98182.0,0.001157]
[1735196127617,0.7446676,98183.0,98182.0,0.0001714]
[1735196127618,0.7406676,98183.0,98182.0,0.0001714]
[1735196127824,0.7496676,98183.0,98182.0,0.0011714]
[1735196129003,0.7406676,98183.0,98182.0,0.0001714]
[1735196129204,0.7356676,98183.0,98182.0,0.0001714]
[1735196130303,0.7446676,98183.0,98182.0,0.0011714]
[1735196130508,0.6296676,98183.0,98182.0,0.0011714]
[1735196130692,0.34228128,98183.0,98182.0,0.0011714]
[1735196131103,0.46228128,98183.0,98182.0,0.0011714]
[1735196131773,0.41538128,98183.0,98182.0,0.0011714]
[1735196138338,0.50623232,98183.0,98182.0,0.0011714]
[1735196139537,0.41538128,98183.0,98182.0,0.0011714]
[1735196141853,0.75172618,98183.0,98182.0,0.0011714]
[1735196145298,0.93406388,98183.0,98182.0,0.0011714]
[1735196148295,0.75172618,98183.0,98182.0,0.0011714]
[1735196149652,0.55203898,98183.0,98182.0,0.0011714]
[1735196150632,0.59771898,98183.0,98182.0,0.0011714]
[1735196151744,0.67491898,98183.0,98182.0,0.0011714]
[1735196151923,0.49258128,98183.0,98182.0,0.0011714]
[1735196152659,0.6458676,98183.0,98182.0,0.0011714]
[1735196153455,0.98219718,98183.0,98182.0,0.0011714]
[1735196153873,1.08949718,98183.0,98182.0,0.0011714]
[1735196154607,0.283507,98155.0,98154.0,0.079]
[1735196154849,0.0005,98141.0,98139.0,0.046]
[1735196155025,0.0005,98141.0,98140.0,0.19557122]
[1735196155228,0.0005,98141.0,98140.0,0.27457122]
[1735196155433,0.0205,98141.0,98140.0,0.27457122]
[1735196155843,0.0205,98141.0,98140.0,0.27509228]
[1735196156045,0.0215,98141.0,98140.0,0.28109228]
[1735196156207,0.0215,98141.0,98140.0,0.18950738]
[1735196156422,0.0215,98141.0,98140.0,0.19250738]
[1735196158585,0.0215,98141.0,98140.0,0.19245738]
[1735196164005,0.0215,98141.0,98140.0,0.08852106]
[1735196164230,0.1227739,98141.0,98140.0,0.00952106]
[1735196164424,0.13308365,98141.0,98140.0,0.00952106]
[1735196165060,0.13308365,98141.0,98140.0,0.00652106]
[1735196165252,0.13208365,98141.0,98140.0,0.00052106]
[1735196165460,0.13308365,98141.0,98140.0,0.00052106]
[1735196166205,0.13408365,98141.0,98140.0,0.00052106]
[1735196166924,0.13308365,98141.0,98140.0,0.00052106]
[1735196167073,0.13408365,98141.0,98140.0,0.00052106]
[1735196167472,0.13308365,98141.0,98140.0,0.00052106]
[1735196167696,0.13508365,98141.0,98140.0,0.00052106]
[1735196167916,0.13708365,98141.0,98140.0,0.00052106]
[1735196168434,0.15506863,98141.0,98140.0,0.00052106]
[1735196168641,0.15206863,98141.0,98140.0,0.00069266]
[1735196168795,0.15806863,98141.0,98140.0,0.00069266]
[1735196168997,0.15815443,98141.0,98140.0,0.00069266]
[1735196169205,0.15615443,98141.0,98140.0,0.00069266]
[1735196169722,0.15815443,98141.0,98140.0,0.00069266]
[1735196170127,0.15415443,98141.0,98140.0,0.00069266]
[1735196170331,0.15815443,98141.0,98140.0,0.00069266]
[1735196170839,0.15615443,98141.0,98140.0,0.00069266]
[1735196171223,0.15815443,98141.0,98140.0,0.00069266]
[1735196172045,0.14784468,98141.0,98140.0,0.00069266]
[1735196172249,0.12784468,98141.0,98140.0,0.00069266]
[1735196172456,0.14784468,98141.0,98140.0,0.00069266]
[1735196172829,0.12784468,98141.0,98140.0,0.00069266]
[1735196173352,0.14784468,98141.0,98140.0,0.00069266]
[1735196173513,0.1278597,98141.0,98140.0,0.00069266]
[1735196174151,0.1078597,98141.0,98140.0,0.00069266]
[1735196174325,0.1278597,98141.0,98140.0,0.00069266]
[1735196179052,0.1078597,98141.0,98140.0,0.00069266]
[1735196179231,0.1278597,98141.0,98140.0,0.00069266]
[1735196180383,0.1078597,98141.0,98140.0,0.00069266]
[1735196180604,0.1278597,98141.0,98140.0,0.00069266]
[1735196181463,0.1078597,98141.0,98140.0,0.00069266]
[1735196182706,0.1278597,98141.0,98140.0,0.00069266]
[1735196186704,0.1078597,98141.0,98140.0,0.00069266]
[1735196186875,0.1278597,98141.0,98140.0,0.00069266]
[1735196187664,0.1078597,98141.0,98140.0,0.00069266]
[1735196188083,0.1278597,98141.0,98140.0,0.00069266]
[1735196206328,0.2278597,98141.0,98140.0,0.00069266]
[1735196206488,0.2265858,98141.0,98140.0,0.00069266]
[1735196209769,0.1265858,98141.0,98140.0,0.00069266]
[1735196209928,0.1078598,98141.0,98140.0,0.00069266]
[1735196210124,0.2278598,98141.0,98140.0,0.00069266]
[1735196210334,0.1265858,98141.0,98140.0,0.00069266]
[1735196210534,0.1278598,98141.0,98140.0,0.00069266]
[1735196210761,0.1078598,98141.0,98140.0,0.00069266]
[1735196210965,0.0278598,98141.0,98140.0,0.10467898]
[1735196211287,0.0278598,98141.0,98140.0,0.18687898]
[1735196211288,0.0065858,98141.0,98140.0,0.18687898]
[1735196211844,0.0045858,98141.0,98140.0,0.18687898]
[1735196212059,0.0015858,98141.0,98140.0,0.18687898]
[1735196212700,0.0005858,98141.0,98140.0,0.18687898]
[1735196213092,0.0010858,98141.0,98140.0,0.19687898]
[1735196213321,0.0015858,98141.0,98140.0,0.19687898]
[1735196213495,0.0015858,98141.0,98140.0,0.5291937]
[1735196213731,0.0005858,98141.0,98140.0,0.5271937]
[1735196214326,0.0205858,98141.0,98140.0,0.5271937]
[1735196214523,0.0005858,98141.0,98140.0,0.5271937]
[1735196215082,0.0005858,98141.0,98140.0,0.5311937]
[1735196215083,0.0215858,98141.0,98140.0,0.5311937]
[1735196215222,0.0205858,98141.0,98140.0,0.5221937]
[1735196215422,0.0205858,98141.0,98140.0,0.5251937]
[1735196215664,0.0215858,98141.0,98140.0,0.5321937]
[1735196216695,0.0215858,98141.0,98140.0,0.19687898]
[1735196219052,0.0015858,98141.0,98140.0,0.19687898]
[1735196219269,0.0015858,98141.0,98140.0,0.24237898]
[1735196219806,0.0010858,98141.0,98140.0,0.41537898]
[1735196220053,0.0005,98152.0,98140.0,0.41537898]
[1735196220054,0.0005,98149.0,98143.0,0.023]
[1735196220252,0.0005,98149.0,98148.0,0.51560532]
[1735196221776,0.0005,98149.0,98148.0,0.85323493]
[1735196222429,0.0005,98149.0,98148.0,0.85823493]
[1735196222626,0.0015,98149.0,98148.0,0.85823493]
[1735196223185,0.002,98149.0,98148.0,0.9012367]
[1735196223391,0.0005,98157.0,98151.0,0.238614]
[1735196223586,0.0005,98152.0,98151.0,0.0756]
[1735196223838,0.0005,98160.0,98159.0,0.0455]
[1735196224042,0.0005,98160.0,98159.0,0.22508632]
[1735196224248,0.0005,98162.0,98159.0,0.31248632]
[1735196224440,0.0005,98161.0,98160.0,0.0756]
[1735196225520,0.0005,98161.0,98160.0,0.0796]
[1735196226340,0.0015,98161.0,98160.0,0.0886]
[1735196228453,0.0015,98161.0,98160.0,0.19258632]
[1735196228654,0.0015857,98161.0,98160.0,0.19258632]
[1735196229063,0.0015857,98161.0,98160.0,0.20305686]
[1735196234040,0.0015857,98161.0,98160.0,0.39705686]
[1735196234251,0.0015857,98161.0,98160.0,0.20305686]
[1735196234457,0.0015857,98161.0,98160.0,0.35305686]
[1735196235078,0.0010857,98161.0,98160.0,0.37605686]
[1735196240213,0.0010857,98161.0,98160.0,0.57005686]
[1735196240474,0.0010857,98161.0,98160.0,0.37605686]
[1735196244278,0.0010857,98161.0,98160.0,0.57005686]
[1735196244483,0.0010857,98161.0,98160.0,0.37605686]
[1735196245289,0.00093159,98161.0,98160.0,0.37605686]
[1735196246554,0.00093159,98161.0,98160.0,0.42265686]
[1735196246967,5.9e-07,98161.0,98160.0,0.94539486]
[1735196247207,8.57e-05,98183.0,98182.0,0.460062]
[1735196247406,8.57e-05,98183.0,98182.0,0.75804832]
[1735196248443,8.57e-05,98183.0,98182.0,0.75810037]
[1735196248847,8.57e-05,98183.0,98182.0,0.76710037]
[1735196249947,8.57e-05,98183.0,98182.0,0.77110037]
[1735196250401,8.57e-05,98183.0,98182.0,0.76710037]
[1735196250601,8.57e-05,98183.0,98182.0,0.77010037]
[1735196253167,8.57e-05,98183.0,98182.0,0.78009114]
[1735196255738,8.57e-05,98183.0,98182.0,0.58609114]
[1735196257596,8.57e-05,98183.0,98182.0,0.31199114]
[1735196257805,0.0205857,98183.0,98182.0,0.11603837]
[1735196258231,0.0656857,98183.0,98182.0,0.31003837]
[1735196258538,0.0656857,98183.0,98182.0,0.11603837]
[1735196258755,0.0656857,98183.0,98182.0,0.10703837]
[1735196258955,0.0656857,98183.0,98182.0,0.11303837]
[1735196259482,0.0656857,98183.0,98182.0,0.11003837]
[1735196259928,0.0656857,98183.0,98182.0,0.11203837]
[1735196260380,0.0656857,98183.0,98182.0,0.11003837]
[1735196260764,0.0656857,98183.0,98182.0,0.10603837]
[1735196261172,0.0666857,98183.0,98182.0,0.10603837]
[1735196262034,0.0666857,98183.0,98182.0,0.10403837]
[1735196262416,0.0676857,98183.0,98182.0,0.10403837]
[1735196271158,0.0676857,98183.0,98182.0,5.205e-05]
[1735196271411,0.25185901,98183.0,98182.0,5.205e-05]
[1735196271676,0.4135467,98183.0,98182.0,5.205e-05]
[1735196272307,0.5135467,98183.0,98182.0,5.205e-05]
[1735196273417,0.5115467,98183.0,98182.0,5.205e-05]